bitfinex/quotes_ETHUSD_20250403
["timestamp","ask_amount","ask_price","bid_price","bid_amount"]
[1743688135618,0.7514,1782.8,1782.4,5.61034]
[1743688135619,6.36065,1782.8,1782.4,5.61034]
[1743688136599,0.7514,1782.8,1782.4,11.27668601]
[1743688136800,6.36055,1782.8,1782.4,5.61025]
[1743688137203,0.05,1782.9,1782.4,1.17819103]
[1743688137526,0.05,1782.9,1782.5,11.21985]
[1743688137845,0.05,1782.9,1782.8,5.60915]
[1743688138034,0.05,1782.9,1782.8,9.2152274]
[1743688139499,0.05,1782.9,1782.8,9.15915]
[1743688139704,0.05,1782.9,1782.8,11.32830966]
[1743688139910,0.05,1782.9,1782.8,11.272236]
[1743688140735,0.05,1782.9,1782.8,8.272236]
[1743688141032,0.05,1782.9,1782.8,8.32831461]
[1743688141193,0.05,1782.9,1782.8,8.272236]
[1743688141396,0.05,1782.9,1782.7,11.97168]
[1743688141641,0.05,1782.9,1782.6,5.60973]
[1743688141845,5.60937,1782.8,1782.3,6.37258]
[1743688142051,0.05,1782.9,1782.1,0.05609462]
[1743688142209,0.05,1782.9,1782.5,5.60999]
[1743688142543,0.05,1782.9,1782.7,5.60946]
[1743688142874,0.05,1782.9,1782.4,5.6101]
[1743688143017,5.65885,1782.9,1782.4,11.22035]
[1743688143343,0.05,1782.9,1782.5,0.798]
[1743688143661,5.6094,1782.8,1782.3,5.61044]
[1743688143956,0.753,1782.6,1781.8,5.61208]
[1743688144258,0.753,1782.6,1781.7,0.798]
[1743688144409,5.61042,1782.4,1781.9,5.61195]
[1743688144610,0.7564,1782.2,1781.5,5.6132]
[1743688144805,7.6424,1782.2,1781.6,5.61291]
[1743688145011,7.6424,1782.2,1781.8,5.6121]
[1743688145426,7.6424,1782.2,1781.9,5.61185]
[1743688145628,13.25356,1782.2,1781.8,5.6121]
[1743688145855,5.61146,1782.1,1781.6,5.61268]
[1743688146153,0.05000016,1782.1,1781.7,5.61247]
[1743688146313,0.05000016,1782.1,1781.7,0.05611977]
[1743688146518,0.05000016,1782.1,1781.4,5.61355]
[1743688146519,5.61229,1781.9,1781.4,5.61355]
[1743688146715,5.61337,1781.5,1781.0,5.61467]
[1743688147021,0.05000016,1781.8,1781.1,5.61447]
[1743688147208,0.05000016,1781.8,1781.3,5.61358]
[1743688147413,5.61275,1781.7,1781.2,5.61397]
[1743688147615,5.61261,1781.8,1781.3,5.61358]
[1743688147810,10.6454,1781.9,1781.6,5.61291]
[1743688148010,7.6454,1781.9,1781.6,5.61291]
[1743688148352,7.6454,1781.9,1781.7,5.61259]
[1743688148512,7.6454,1781.9,1781.5,5.61319]
[1743688148914,6.886,1781.9,1781.7,5.61249]
[1743688149140,3.80940016,1782.1,1781.7,5.61249]
[1743688149348,6.42080016,1782.1,1781.6,11.28166074]
[1743688149512,5.61219,1781.9,1781.4,6.3769]
[1743688149714,5.61219,1781.9,1781.5,0.05612414]
[1743688149928,0.05000016,1781.9,1781.5,0.05612414]
[1743688150149,0.05000016,1781.9,1781.4,5.66966587]
[1743688150471,5.66168016,1782.0,1781.5,6.16305]
[1743688150667,5.66168016,1782.0,1781.5,7.340709]
[1743688150971,0.05000016,1782.0,1781.3,6.725118]
[1743688151179,5.61234,1781.8,1781.3,12.338798]
[1743688151476,5.61234,1781.8,1780.3,0.28529984]
[1743688151477,7.75380016,1781.7,1780.9,0.8184]
[1743688151769,5.61302,1781.6,1781.0,5.61469]
[1743688151952,13.31646,1781.7,1780.9,0.8184]
[1743688152151,13.31646,1781.7,1781.3,5.61386]
[1743688152152,7.7038,1781.7,1781.3,5.61386]
[1743688152374,7.7038,1781.7,1781.4,0.05612843]
[1743688152677,7.7038,1781.7,1781.4,5.66960843]
[1743688153002,3.7838,1782.0,1781.6,5.61293]
[1743688153166,0.7838,1782.0,1781.7,5.6686045]
[1743688153495,5.61015,1782.5,1782.2,5.61088]
[1743688153496,0.7838,1782.5,1782.2,5.61088]
[1743688153663,5.61087,1782.3,1781.8,6.16222]
[1743688153862,0.05000016,1782.4,1781.9,5.61186]
[1743688153863,5.66072016,1782.4,1781.9,5.61186]
[1743688154076,0.05000016,1782.4,1782.0,5.61161]
[1743688154276,5.66053016,1782.4,1781.9,5.61186]
[1743688154478,5.61086,1782.3,1781.9,5.61194]
[1743688154679,5.61053,1782.4,1781.9,5.61194]
[1743688154961,0.7838,1782.5,1782.2,5.61103]
[1743688155175,6.39411,1782.5,1781.9,12.4076432]
[1743688155377,5.66057016,1782.4,1781.9,5.6118]
[1743688155585,0.7838,1782.5,1782.2,5.61084]
[1743688155895,0.7838,1782.5,1782.3,5.6107]
[1743688156084,0.7838,1782.5,1781.9,6.16187]
[1743688156290,0.7838,1782.5,1782.3,5.61062]
[1743688156465,0.7838,1782.5,1782.2,5.61101]
[1743688156666,6.3939,1782.5,1782.1,11.22239]
[1743688156861,6.3939,1782.5,1782.1,5.61119]
[1743688157090,6.3939,1782.5,1782.1,11.22235]
[1743688157261,6.3939,1782.5,1782.3,5.6105]
[1743688157262,0.7838,1782.5,1782.3,5.6105]
[1743688157462,0.05,1782.9,1782.5,5.6099]
[1743688157463,0.7703,1782.7,1782.5,5.6099]
[1743688157902,3.10000016,1782.9,1782.5,0.05609478]
[1743688158111,8.70903016,1782.9,1782.5,5.60996]
[1743688158266,3.10000016,1782.9,1782.4,5.61039]
[1743688158462,5.60942,1782.8,1782.4,5.61026]
[1743688158759,5.60941,1782.8,1782.3,5.61063]
[1743688158965,0.8254,1782.5,1782.2,5.61087]
[1743688159173,0.8254,1782.5,1782.3,5.61061]
[1743688159373,6.43567,1782.5,1782.1,0.55]
[1743688159701,5.66052016,1782.4,1782.0,11.22289]
[1743688159896,5.61052,1782.4,1782.0,5.61143]
[1743688160202,0.8254,1782.5,1782.2,5.61085]
[1743688160366,6.43549,1782.5,1782.1,5.6113]
[1743688160702,6.43554,1782.5,1782.1,5.6113]
[1743688160876,0.8244,1782.2,1781.6,5.61272]
[1743688161077,6.93600016,1782.1,1781.8,5.61228]
[1743688161377,5.61177,1782.0,1781.6,5.61273]
[1743688161578,5.61177,1782.0,1781.6,0.05612095]
[1743688161794,6.886,1782.1,1781.3,5.61375]
[1743688161795,6.43712,1781.7,1781.3,5.61375]
[1743688161996,12.54899016,1781.6,1781.2,5.61395]
[1743688162194,5.61355,1781.5,1781.0,5.61478]
[1743688162509,5.61355,1781.5,1780.8,0.7539]
[1743688162510,6.42192,1781.3,1780.8,6.36913]
[1743688162704,0.8078,1781.3,1781.0,5.61471]
[1743688162870,0.8078,1781.3,1781.1,5.61446]
[1743688163070,11.97826,1781.6,1781.2,5.61403]
[1743688163272,5.61368,1781.4,1780.8,0.7539]
[1743688163504,0.05000016,1781.3,1781.0,5.61463]
[1743688163708,5.66368016,1781.4,1781.0,5.61463]
[1743688164007,0.05000016,1781.4,1781.1,5.61448]
[1743688164315,11.27745016,1781.4,1781.0,5.61482]
[1743688164609,5.61366,1781.4,1781.0,5.6148]
[1743688164913,3.0,1781.5,1781.2,5.61407]
[1743688165211,0.7521,1781.6,1781.3,5.61375]
[1743688165605,0.7521,1781.6,1781.4,5.61347]
[1743688165784,6.886,1781.7,1781.5,5.61324]
[1743688165987,0.798,1781.9,1781.6,5.61281]
[1743688166178,0.798,1781.9,1781.5,0.55]
[1743688166573,0.798,1781.9,1781.5,6.229542]
[1743688166813,5.66249016,1781.8,1781.4,5.61347]
[1743688166980,5.61261,1781.7,1781.3,5.61384]
[1743688167175,5.61235,1781.8,1781.3,0.05613201]
[1743688167379,0.84800016,1781.9,1781.3,0.05613201]
[1743688167604,0.84800016,1781.9,1781.4,5.61345]
[1743688167802,3.84800016,1781.9,1781.2,5.61393]
[1743688168012,5.61283,1781.7,1781.4,5.61354]
[1743688168211,5.66283016,1781.7,1781.3,5.61375]
[1743688168410,5.66283016,1781.7,1781.4,5.6135]
[1743688168580,9.41005,1781.9,1781.5,5.6132]
[1743688168779,12.49932,1781.8,1781.3,5.61372]
[1743688169012,5.61272,1781.7,1781.3,11.28352793]
[1743688169212,5.61272,1781.7,1781.3,11.2274]
[1743688169523,5.66272016,1781.7,1781.3,5.61368]
[1743688169719,6.3684,1781.4,1781.1,5.61448]
[1743688170021,0.7548,1781.4,1781.1,5.61436]
[1743688170201,5.61402,1781.3,1780.9,5.61502]
[1743688170544,5.61397,1781.3,1781.0,0.05614149]
[1743688170825,11.22804,1781.3,1780.9,5.61495]
[1743688171022,18.1151,1781.3,1780.9,5.61495]
[1743688171176,18.1151,1781.3,1780.8,5.61544]
[1743688171177,5.66421016,1781.2,1780.8,5.61544]
[1743688171383,0.05000016,1781.2,1780.5,5.61623]
[1743688171583,0.05000016,1781.2,1780.6,0.05615548]
[1743688171584,0.7736,1781.0,1780.6,0.05615548]
[1743688171783,5.6143,1781.2,1780.9,5.61498]
[1743688171784,0.7736,1781.2,1780.9,5.61498]
[1743688172027,0.7736,1781.2,1780.9,5.61495]
[1743688172385,0.82360016,1781.2,1780.9,5.61495]
[1743688172588,6.38782,1781.2,1780.9,5.61495]
[1743688172929,6.43782016,1781.2,1780.8,5.61527]
[1743688173133,6.43782016,1781.2,1780.7,5.61564]
[1743688173134,5.61461,1781.1,1780.7,5.61564]
[1743688173289,5.66483016,1781.0,1780.7,5.61564]
[1743688173623,5.61452,1781.1,1780.7,5.61564]
[1743688174122,0.05000016,1781.0,1780.5,5.61625]
[1743688174289,5.6154,1780.9,1780.5,5.61625]
[1743688174691,5.66514016,1780.9,1780.6,5.61591]
[1743688174887,11.28048016,1780.9,1780.5,5.61622]
[1743688175119,5.61514,1780.9,1780.5,11.2325]
[1743688175311,5.66514016,1780.9,1780.5,11.2325]
[1743688175536,0.7995,1780.8,1780.5,11.23247]
[1743688175714,0.7995,1780.8,1780.5,5.61622]
[1743688176430,0.7995,1780.8,1780.5,5.67237636]
[1743688176603,0.7995,1780.8,1780.6,5.61589]
[1743688176799,6.4151,1780.8,1780.4,13.65787681]
[1743688177030,6.4151,1780.8,1780.4,8.04117681]
[1743688177201,5.61622,1780.6,1780.2,5.61722]
[1743688177525,5.61577,1780.7,1780.3,5.6169]
[1743688177727,5.61577,1780.7,1780.5,11.23261]
[1743688177728,0.42772206,1780.7,1780.5,11.23261]
[1743688178040,0.42772206,1780.7,1780.6,5.61608]
[1743688178529,7.6865,1780.8,1780.6,11.23216]
[1743688179335,7.6865,1780.8,1780.7,5.61576]
[1743688179336,6.887,1780.8,1780.7,5.61576]
[1743688179540,6.887,1780.8,1780.5,5.61636]
[1743688179736,6.887,1780.8,1780.4,5.61665]
[1743688179737,12.55256016,1780.8,1780.4,5.61665]
[1743688179938,6.887,1780.8,1780.6,5.61597]
[1743688180108,6.887,1780.8,1780.5,5.61638]
[1743688180310,6.887,1780.8,1780.5,11.23252]
[1743688180508,6.887,1780.8,1780.6,5.61605]
[1743688180709,6.887,1780.8,1780.6,11.2321]
[1743688180908,6.887,1780.8,1780.6,5.61607]
[1743688181413,0.8289,1781.0,1780.5,5.61626]
[1743688181614,0.8289,1781.0,1780.9,5.61513]
[1743688181814,13.36880016,1781.2,1780.7,5.61568]
[1743688182151,13.36880016,1781.2,1780.8,5.61531]
[1743688182152,13.31885,1781.2,1780.8,5.61531]
[1743688182330,5.61519,1780.9,1780.5,5.61612]
[1743688182528,5.61519,1780.9,1780.5,11.23241]
[1743688182736,5.61588,1780.7,1780.3,5.61699]
[1743688183065,0.8323,1780.8,1780.6,5.61608]
[1743688183207,6.44784,1780.8,1780.3,6.16703]
[1743688183413,5.61644,1780.5,1780.1,5.66749]
[1743688183614,5.66644016,1780.5,1780.1,5.66749]
[1743688183809,0.05000016,1780.5,1780.2,5.61723]
[1743688184237,0.8323,1780.8,1780.6,5.61596]
[1743688184447,0.8323,1780.8,1780.3,5.67300033]
[1743688184448,5.61592,1780.7,1780.3,5.61689]
[1743688184630,5.66592016,1780.7,1780.2,11.23455]
[1743688184832,11.23245,1780.6,1780.2,5.61722]
[1743688185051,18.11972,1780.7,1780.2,5.67335472]
[1743688185263,18.11979,1780.7,1780.3,5.61684]
[1743688185850,12.50381,1780.7,1780.1,0.05]
[1743688186049,5.66620016,1780.6,1780.2,5.61723]
[1743688186366,0.05000016,1780.6,1780.1,0.05]
[1743688186574,6.41274,1780.2,1780.1,0.05]
[1743688186742,13.34974016,1780.2,1780.1,0.05]
[1743688187079,16.29974,1780.2,1780.1,0.05]
[1743688187438,13.29974,1780.2,1780.1,0.05]
[1743688188533,7.6824,1780.2,1780.1,0.05]
[1743688188937,13.29974,1780.2,1780.1,0.05]
[1743688192281,0.8118,1780.6,1780.3,5.61702]
[1743688192448,0.05000016,1780.5,1780.3,5.61694]
[1743688192650,0.8118,1780.6,1780.5,5.61639]
[1743688192986,0.05000016,1780.7,1780.4,11.23314]
[1743688193150,5.66608016,1780.7,1780.3,11.23385]
[1743688193485,12.50349,1780.8,1780.1,0.8463]
[1743688193486,6.888,1780.8,1780.6,5.61608]
[1743688193642,5.61628,1780.6,1780.2,5.61715]
[1743688193843,6.45168016,1780.6,1780.2,11.23433]
[1743688194037,6.45168016,1780.6,1780.1,6.46374]
[1743688194038,6.45153016,1780.6,1780.1,6.46374]
[1743688194253,5.61649,1780.5,1780.2,5.61732]
[1743688194474,0.05000016,1780.4,1780.1,5.66744]
[1743688194655,5.61704,1780.3,1780.1,0.05]
[1743688194842,5.61704,1780.3,1780.1,5.66756]
[1743688194843,0.05000016,1780.3,1780.1,5.66756]
[1743688195050,5.66643016,1780.5,1780.1,5.66756]
[1743688195272,5.61681,1780.4,1780.1,0.05]
[1743688195471,6.93800016,1780.3,1780.1,0.05]
[1743688195773,12.50444,1780.5,1780.1,5.66744]
[1743688195973,0.05000016,1780.4,1780.1,5.66744]
[1743688196149,6.888,1780.5,1780.3,5.61702]
[1743688196357,6.888,1780.5,1780.3,5.61686]
[1743688196750,6.888,1780.5,1780.2,5.6173]
[1743688196978,6.888,1780.5,1780.2,5.61719]
[1743688197174,12.50452,1780.5,1780.2,5.61719]
[1743688197352,15.50385,1780.7,1780.3,5.61678]
[1743688197559,0.05000016,1780.6,1780.4,5.61662]
[1743688197751,15.55385016,1780.7,1780.4,5.61662]
[1743688197947,0.05000016,1780.6,1780.4,5.61662]
[1743688198147,0.05000016,1780.6,1780.3,5.61678]
[1743688198342,0.05000016,1780.6,1780.4,5.61658]
[1743688198853,0.05000016,1780.6,1780.4,5.61667]
[1743688199868,0.05000016,1780.6,1780.3,5.61678]
[1743688200060,5.66611016,1780.6,1780.3,5.61678]
[1743688200257,0.05000016,1780.6,1780.1,0.05]
[1743688200461,5.61679,1780.4,1780.1,5.66755]
[1743688200659,5.66679016,1780.4,1780.1,5.66755]
[1743688200878,0.05000016,1780.4,1780.1,5.66749]
[1743688201073,0.7697,1780.5,1780.2,5.61722]
[1743688201277,0.05000016,1780.4,1780.2,5.61732]
[1743688201473,0.05000016,1780.4,1780.2,5.61718]
[1743688201674,0.7697,1780.5,1780.1,0.05]
[1743688201675,6.43625016,1780.5,1780.1,5.6676]
[1743688201985,6.43625016,1780.5,1780.1,5.6675]
[1743688202215,0.7646,1781.0,1780.4,0.76]
[1743688202480,3.79158088,1781.7,1780.4,0.76]
[1743688202481,5.614,1781.3,1780.6,6.37599]
[1743688202681,0.05000016,1781.2,1780.9,5.61498]
[1743688203181,6.37768,1781.6,1780.8,0.55]
[1743688203182,6.37773,1781.6,1780.8,0.55]
[1743688203483,5.61265,1781.7,1781.4,5.61353]
[1743688203687,0.05000016,1781.6,1781.3,5.61371]
[1743688203872,0.8114,1781.5,1781.0,5.61481]
[1743688204073,5.61419,1781.2,1780.9,5.61498]
[1743688204273,0.05000016,1781.2,1781.0,5.6147]
[1743688204588,5.66433016,1781.2,1780.8,5.61526]
[1743688204886,0.7772,1782.1,1781.1,0.55]
[1743688205058,0.7772,1782.1,1781.8,5.61208]
[1743688205259,0.05000016,1782.2,1781.9,5.61197]
[1743688205459,6.44096,1782.7,1782.1,0.55]
[1743688205674,0.05000016,1782.6,1782.3,5.61051]
[1743688205880,0.05,1782.9,1782.4,0.0561033]
[1743688206077,0.10000016,1782.9,1782.6,5.60969]
[1743688206591,0.05,1782.9,1782.5,5.60998]
[1743688206792,0.05,1782.9,1782.7,5.60927]
[1743688206963,0.05,1782.9,1782.8,5.60915]
[1743688207165,0.05,1782.9,1782.8,6.78707709]
[1743688207367,0.81910016,1783.6,1783.1,5.60821]
[1743688207556,0.05000016,1783.5,1783.1,5.60802]
[1743688207752,0.7691,1783.6,1783.2,5.60788]
[1743688208064,5.65651016,1783.7,1783.2,11.2155]
[1743688208398,11.21496,1783.4,1782.9,5.60883]
[1743688208602,5.65759016,1783.3,1782.9,5.60883]
[1743688208896,11.26543016,1783.3,1782.8,6.43434]
[1743688209093,5.60759,1783.3,1782.9,5.6087]
[1743688209254,0.05000016,1783.3,1782.9,5.60881]
[1743688209456,0.05000016,1783.3,1782.9,5.60876]
[1743688209871,0.05000016,1783.3,1782.8,6.43416]
[1743688209872,5.65771016,1783.3,1782.8,6.43416]
[1743688210065,5.60792,1783.2,1782.8,6.43416]
[1743688210257,5.60792,1783.2,1782.7,5.60946]
[1743688210258,0.05000016,1783.1,1782.7,5.60946]
[1743688210463,11.21605,1783.2,1782.7,5.60946]
[1743688210657,5.60792,1783.2,1782.7,5.60946]
[1743688210882,6.36898,1783.3,1782.5,6.37931]
[1743688211188,6.881,1783.4,1783.0,5.6084]
[1743688211392,0.7795,1783.6,1783.1,0.05607882]
[1743688211590,0.05000016,1783.5,1783.1,5.60792]
[1743688211892,0.7795,1783.6,1783.3,5.60744]
[1743688212060,0.7795,1783.6,1783.2,5.60781]
[1743688212261,3.0,1783.9,1783.5,5.60693]
[1743688212262,0.7958,1783.9,1783.5,5.60693]
[1743688212461,0.7958,1783.9,1783.7,5.60624]
[1743688212662,12.48418,1784.1,1783.7,5.60624]
[1743688212876,5.60574,1783.9,1783.5,5.60669]
[1743688213107,5.65614016,1783.8,1783.3,5.60728]
[1743688213294,5.65557016,1784.0,1783.4,0.05606094]
[1743688213456,5.65557016,1784.0,1783.6,5.60648]
[1743688213661,12.48407,1784.1,1783.7,0.05606149]
[1743688213862,5.65538016,1784.0,1783.6,5.60648]
[1743688214165,5.60616,1783.8,1783.3,11.21496]
[1743688214482,3.0,1783.5,1782.8,5.60899]
[1743688214672,12.53342016,1783.4,1782.9,5.60878]
[1743688214874,5.60814,1783.2,1782.7,6.4161]
[1743688215087,11.26629016,1783.2,1782.7,5.6094]
[1743688215394,5.60867,1783.0,1782.6,5.60949]
[1743688215616,5.65898016,1782.9,1782.5,5.61009]
[1743688215911,6.41668,1783.3,1782.8,5.609]
[1743688216071,0.8091,1783.3,1782.9,5.6087]
[1743688216978,6.46683016,1783.3,1782.7,5.60926]
[1743688217181,0.85910016,1783.3,1782.9,5.60879]
[1743688217408,6.46668016,1783.3,1782.8,5.60914]
[1743688217591,0.8091,1783.3,1782.9,5.66470458]
[1743688217902,0.05000016,1783.4,1783.0,5.60836]
[1743688218406,3.0,1783.7,1783.3,5.60743]
[1743688218603,3.05000016,1783.7,1783.3,5.60743]
[1743688218803,8.65637016,1783.7,1783.3,5.60743]
[1743688219105,5.60793,1783.2,1782.7,5.60944]
[1743688219269,6.875,1783.4,1783.1,5.60809]
[1743688219470,6.875,1783.4,1783.1,5.60798]
[1743688219689,0.86500016,1783.6,1783.3,5.60739]
[1743688220224,0.7896,1783.8,1783.4,5.60709]
[1743688220508,0.83960016,1783.8,1783.4,5.66315607]
[1743688220670,6.40988,1784.0,1783.5,5.60681]
[1743688220871,0.85420016,1784.0,1783.5,5.60695]
[1743688221099,6.45980016,1784.0,1783.6,5.66267172]
[1743688221306,46.03224,1784.4,1783.5,5.60695]
[1743688221307,7.6772,1784.3,1783.8,5.60574]
[1743688221493,5.60508,1784.1,1783.7,5.6063]
[1743688221895,0.05000016,1784.2,1783.7,0.05605574]
[1743688222099,13.28165,1784.3,1784.0,5.60532]
[1743688222100,0.8042,1784.3,1784.0,5.60532]
[1743688222276,5.65481016,1784.2,1783.7,5.60618]
[1743688222477,0.85420016,1784.3,1783.8,5.66192417]
[1743688222677,12.06352016,1784.3,1783.8,5.66192417]
[1743688222979,0.8042,1784.3,1783.9,5.60564]
[1743688223299,6.45879016,1784.3,1783.8,5.60581]
[1743688223496,0.8042,1784.3,1783.9,0.05604978]
[1743688223805,5.6039,1784.5,1784.2,5.60464]
[1743688223806,0.8165,1784.5,1784.2,5.60464]
[1743688224009,0.8165,1784.5,1784.0,1.3161]
[1743688224183,40.377,1785.2,1784.0,1.3161]
[1743688224184,0.8165,1784.9,1784.6,5.60329]
[1743688224724,0.8296,1785.4,1785.0,5.6022]
[1743688225017,0.8296,1785.4,1784.8,5.60278]
[1743688225018,5.60172,1785.2,1784.8,5.60278]
[1743688225218,5.65131016,1785.3,1784.5,0.55]
[1743688225219,0.05000016,1785.1,1784.6,5.60347]
[1743688225431,5.65138016,1785.3,1784.8,5.60267]
[1743688225603,6.43061,1785.4,1784.8,0.05602026]
[1743688225784,5.60213,1785.1,1784.6,5.60338]
[1743688226111,5.60288,1784.8,1784.3,5.60415]
[1743688226280,6.40328016,1784.9,1784.4,5.60409]
[1743688226610,6.40328016,1784.9,1784.4,5.60398]
[1743688226817,5.603,1784.8,1784.2,5.60473]
[1743688226989,5.603,1784.8,1784.0,3.0]
[1743688226990,5.604,1784.5,1784.0,5.6053]
[1743688227190,6.91900016,1784.7,1784.0,5.6053]
[1743688227191,0.7593,1784.4,1784.0,5.6053]
[1743688227390,0.7593,1784.4,1783.9,0.801]
[1743688227391,0.7593,1784.4,1783.9,6.40666]
[1743688227585,0.80930016,1784.4,1783.7,5.60609]
[1743688227781,0.80930016,1784.4,1783.6,0.7657]
[1743688227782,5.60507,1784.1,1783.6,0.7657]
[1743688228007,5.60507,1784.1,1782.8,40.357]
[1743688228008,5.60582,1783.9,1783.4,11.21425]
[1743688228316,6.869,1784.1,1783.5,5.60682]
[1743688228527,5.65561016,1784.0,1783.5,5.60682]
[1743688228820,6.41203,1783.9,1783.4,11.21412]
[1743688229018,0.8062,1784.2,1783.7,5.60615]
[1743688229186,13.28006,1784.2,1783.7,5.60615]
[1743688229386,3.0,1784.4,1784.0,5.6052]
[1743688229693,6.37963,1784.5,1784.2,5.60469]
[1743688229694,7.6437,1784.5,1784.2,5.60469]
[1743688229902,0.7757,1784.5,1784.2,5.60469]
[1743688230218,0.7757,1784.5,1783.9,0.55]
[1743688230423,13.29465,1784.8,1784.3,5.60413]
[1743688230593,13.29465,1784.8,1783.9,6.60128]
[1743688230594,5.60394,1784.5,1783.9,6.60128]
[1743688230795,0.05000016,1784.7,1784.5,5.6038]
[1743688231015,7.6917,1784.8,1784.3,5.60438]
[1743688231016,13.29458,1784.8,1784.3,5.60438]
[1743688231217,13.29458,1784.8,1784.3,0.05603481]
[1743688231418,0.05000016,1784.7,1784.2,5.60445]
[1743688231618,3.05000016,1784.7,1784.0,5.60519]
[1743688231933,5.60392,1784.5,1784.0,5.60538]
[1743688232216,0.05000016,1784.4,1784.0,0.0560462]
[1743688232429,5.60383,1784.5,1784.0,5.60507]
[1743688232636,5.65362016,1784.6,1784.1,5.60489]
[1743688232817,13.2946,1784.8,1784.3,5.60438]
[1743688232991,0.05000016,1784.7,1784.3,5.60438]
[1743688233315,7.6917,1784.8,1784.5,5.60365]
[1743688233483,0.8237,1784.8,1784.4,5.60401]
[1743688233685,0.8237,1784.8,1784.5,5.60371]
[1743688233908,0.8237,1784.8,1784.4,5.60409]
[1743688234131,0.8237,1784.8,1784.4,5.60397]
[1743688234298,0.7574,1785.1,1784.8,5.60281]
[1743688234616,0.7574,1785.1,1784.4,6.77047901]
[1743688234617,5.60274,1784.9,1784.4,6.164377]
[1743688234787,5.65227016,1785.0,1784.4,6.15412]
[1743688234988,3.0,1785.0,1784.6,5.60347]
[1743688235207,6.40933016,1785.1,1784.7,5.60315]
[1743688235388,6.40933016,1785.1,1784.7,5.65917607]
[1743688235715,0.80740016,1785.1,1784.7,11.26221607]
[1743688235889,0.80740016,1785.1,1784.7,5.60304]
[1743688236084,0.80740016,1785.1,1784.7,5.65906608]
[1743688236285,0.80740016,1785.1,1784.9,5.60252]
[1743688236490,0.8184,1785.3,1785.0,0.05601826]
[1743688236684,0.05000016,1785.4,1785.0,5.65823826]
[1743688236891,5.65117016,1785.4,1784.9,5.60252]
[1743688237222,0.05000016,1785.4,1785.0,11.26032573]
[1743688237427,0.05000016,1785.4,1785.0,5.60212]
[1743688237600,5.65100016,1785.4,1785.0,5.65813574]
[1743688238200,0.8037,1785.3,1785.0,0.05601574]
[1743688238400,6.91400016,1785.2,1784.5,0.7762]
[1743688238591,5.60275,1784.9,1784.4,11.20791]
[1743688238794,0.05000016,1784.9,1784.5,5.6038]
[1743688238993,11.25475016,1785.0,1784.5,5.6038]
[1743688239195,5.6032,1784.7,1784.2,5.60468]
[1743688239405,5.6032,1784.7,1784.2,5.60464]
[1743688239929,0.7759,1784.8,1784.5,5.60368]
[1743688240126,0.05000016,1785.0,1784.4,6.15412]
[1743688240452,0.7594,1785.1,1784.2,6.15475]
[1743688240453,0.80940016,1785.1,1784.7,5.60311]
[1743688240606,0.80940016,1785.1,1784.8,5.65886636]
[1743688240607,0.7594,1785.1,1784.8,5.65886636]
[1743688240926,0.05000016,1785.2,1784.7,6.21930367]
[1743688241090,6.35545,1785.7,1785.0,0.7575]
[1743688241293,12.00564016,1785.7,1785.2,11.20305]
[1743688241492,5.60058,1785.6,1785.1,5.60174]
[1743688241695,11.20112,1785.6,1785.2,5.65749919]
[1743688241916,6.35539,1785.7,1785.2,5.65749919]
[1743688242093,0.05,1785.9,1785.2,0.05600919]
[1743688242295,0.05,1785.9,1785.5,0.7784]
[1743688242530,0.05,1785.9,1785.5,11.20112]
[1743688242742,0.05,1785.9,1785.5,6.720612]
[1743688243032,0.05,1785.9,1785.5,1.120112]
[1743688243230,0.05,1785.9,1785.8,5.59973]
[1743688243430,0.05,1785.9,1785.8,5.65571858]
[1743688243727,0.05,1785.9,1785.8,5.59973]
[1743688243939,0.05,1785.9,1785.8,7.01441766]
[1743688244103,0.05,1785.9,1785.8,6.46441766]
[1743688244438,0.05,1785.9,1785.8,7.61487577]
[1743688244746,0.05,1785.9,1785.8,6.46441891]
[1743688245044,0.05,1785.9,1785.8,6.95843]
[1743688245245,0.05,1785.9,1785.8,6.40843]
[1743688245604,0.05,1785.9,1785.8,5.65571776]
[1743688246225,0.05,1785.9,1785.6,6.39016]
[1743688246433,0.05,1785.9,1785.4,0.55]
[1743688246636,0.05,1785.9,1785.8,6.37353]
[1743688247004,0.05,1785.9,1785.8,6.92353]
[1743688247610,0.05,1785.9,1785.8,6.97951249]
[1743688247812,0.05,1785.9,1785.8,6.92353]
[1743688248000,0.05,1785.9,1785.8,6.42951464]
[1743688248340,0.05,1785.9,1785.7,5.59985]
[1743688248706,0.05,1785.9,1785.5,7.6267]
[1743688248707,0.05,1785.9,1785.5,6.36721]
[1743688249039,0.05,1785.9,1785.5,0.7667]
[1743688249215,0.05,1785.9,1785.8,5.59973]
[1743688249629,0.05,1785.9,1785.7,5.5998]
[1743688249825,0.05,1785.9,1785.4,5.60082]
[1743688250024,0.05,1785.9,1785.2,0.7865]
[1743688250025,5.59985,1785.8,1785.2,0.7865]
[1743688250240,5.60064,1785.6,1785.2,0.7865]
[1743688250538,5.65067016,1785.5,1785.0,5.60221]
[1743688250739,0.05000016,1785.5,1784.9,5.60251]
[1743688250940,0.7547,1785.4,1784.9,11.20488]
[1743688251119,6.35597,1785.4,1785.0,6.77873321]
[1743688251440,0.7547,1785.4,1785.0,5.60221]
[1743688251639,6.35586,1785.4,1784.9,5.60244]
[1743688251939,5.6013,1785.3,1784.9,5.65845755]
[1743688252142,5.65130016,1785.3,1784.9,5.65845756]
[1743688252307,11.25280016,1785.3,1784.9,0.05601756]
[1743688252645,0.7547,1785.4,1784.7,5.603]
[1743688252646,5.65164016,1785.2,1784.7,5.603]
[1743688252813,6.857,1785.3,1784.8,0.05602604]